Cogmind - Beta 13 *** ADVENTURER MODE // 2024.06.01 @ 21:56:20 Player: IlyaSM Result: Destroyed by as-72661 with Assembled Blade Performance ------------- Evolutions (0) 0 Regions Visited (2) 400 Robots Destroyed (15) 75 Value Destroyed (204) 204 Prototype IDs (0) 0 Alien Tech Used (0) 0 Bonus (-124) -124 TOTAL SCORE: 555 Bonus ------- Friendly Fire -124 Cogmind --------- Core Integrity 0/250 Matter 6/300 Energy 100/100 System Corruption 0% Temperature Cool (20) Movement Core (150) Ox2 Location -10/Mines Parts ------- > --- POWER (1) -------- (None) > --- PROPULSION (2) --- (None) > --- UTILITY (2) ------ Small Storage Unit > --- WEAPON (2) ------- Light Cannon > --- INVENTORY (8) ---- Wheel Compact Wheel High-capacity Matter Pod (0) Improved Terrain Scanner Seismic Detector Peak State ------------ > --- POWER ------------ Ion Engine > --- PROPULSION ------- Compact Wheel Compact Wheel > --- UTILITY ---------- Small Storage Unit Structural Scanner > --- WEAPON ----------- Assault Rifle Light Assault Rifle > --- INVENTORY -------- Light Ion Engine Wheel Wheel High-capacity Matter Pod Improved Terrain Scanner Seismic Detector Assault Rifle Grenade Launcher [Rating: 8] Favorites ----------- Power Ion Engine Engine Ion Engine Propulsion Compact Wheel Wheel Compact Wheel Utility Small Storage Unit Device Structural Scanner Storage Small Storage Unit Weapon Light Cannon Ballistic Gun Assault Rifle Ballistic Cannon Light Cannon Launcher Grenade Launcher Build | -11 -10 -10 ------- Run | Yrd Mat Min Slots Evolved . | . . . Power . | . . . Propulsion . | . . . Utility . | . . . Weapon . | . . . Parts Attached 19 | 8 8 3 Power 3 | 2 1 . Engine 3 | 2 1 . Core . | . . . Reactor . | . . . Propulsion 4 | 2 2 . Treads . | . . . Leg . | . . . Wheel 4 | 2 2 . Hover . | . . . Flight . | . . . Utility 3 | 2 1 . Device 2 | 1 1 . Storage 1 | 1 . . Processor . | . . . Hackware . | . . . Protection . | . . . Artifact . | . . . Weapon 9 | 2 4 3 Energy Gun . | . . . Energy Cannon . | . . . Ballistic Gun 3 | 2 . 1 Ballistic Cannon 5 | . 4 1 Launcher 1 | . . 1 Special Weapon . | . . . Impact Weapon . | . . . Slashing Weapon . | . . . Piercing Weapon . | . . . Special Melee Weapon . | . . . Unidentified Prototypes . | . . . Parts Lost 7 | . . 7 Power 1 | . . 1 Propulsion 2 | . . 2 Utility 1 | . . 1 Weapon 3 | . . 3 Highest Loss Streak 7 | . . 7 To Critical Strikes 1 | . . 1 Average Slot Usage (%) 92 | . 100 62 Engine 11 | . 14 4 Wheel 25 | . 28 18 Device 11 | . 14 2 Storage 14 | . 14 14 Ballistic Gun 11 | . 13 6 Ballistic Cannon 14 | . 14 16 Naked Turns . | . . . Heaviest Build 17 | 14 17 15 Greatest Support 32 | 32 32 26 Greatest Overweight (x) 3 | 3 1 . Average Overweight (x) . | . . . Largest Inventory Capacity 8 | 8 8 8 Average Capacity 7 | 7 8 8 Most Carried 8 | 6 8 7 Average Carried 6 | 2 7 6 Final Capacity 8 | 8 8 8 Final Carried 7 | 5 7 5 Class Distribution -------------------- 100% | Mutant Dominant Class ---------------- Mutant | -10/Materials Mutant | -10/Mines Resources | -11 -10 -10 ----------- Run | Yrd Mat Min Matter Collected 287 | 122 165 . Remotely . | . . . Salvage Created 299 | 60 157 82 Parts 31 | 12 16 3 Haulers Intercepted . | . . . Recyclers Shooed . | . . . Parts Field Recycled . | . . . Retrieved Matter . | . . . Parts Self-Destructed . | . . . Prevented . | . . . Kills | -11 -10 -10 ------- Run | Yrd Mat Min Combat Hostiles Destroyed 14 | . 9 5 Guns 4 | . 3 1 Cannons 8 | . 6 2 AOE 1 | . . 1 Classes Destroyed 7 | 1 3 3 Tunneler 3 | 3 . . Recycler 1 | . 1 . Swarmer 8 | . 8 . Grunt 1 | . 1 . Demolisher 1 | . . 1 Assembled 4 | . . 4 Guerrilla 1 | . . 1 Best Kill Streak 4 | 2 4 3 Combat Bots Only 3 | . 3 3 Max Kills in Single Turn 2 | 1 1 2 Gunslinging . | . . . Exploded 1 | . . 1 Melee . | . . . Uniques/NPCs Destroyed . | . . . Combat | -11 -10 -10 -------- Run | Yrd Mat Min Hostile Shots Fired 90 | . 32 58 Missed 25 | . 11 14 Damage Taken 819 | . 139 680 Core 254 | . 42 212 Absorbed by Shields . | . . . Ignored by Resistances 239 | . 46 193 Core Remaining (%) 100 | 100 . . Volleys Fired 34 | 6 16 12 Largest 2 | 2 2 2 Hottest 70 | 40 70 65 Shots Fired 64 | 12 32 20 Gun 23 | 12 6 5 Cannon 38 | . 26 12 Launcher 3 | . . 3 Special . | . . . Kinetic 61 | 12 32 17 Thermal . | . . . Explosive 3 | . . 3 Electromagnetic . | . . . Robot Hit Streak 9 | 6 9 9 Robot Miss Streak 3 | 1 3 2 Penetration Max . | . . . Secondary Targets . | . . . Shots Hit Robots 40 | 8 19 13 Core Hits 30 | 4 10 16 Critical Kills 1 | . 1 . Critical Parts Destroyed . | . . . Critical Strikes 1 | . 1 . Destroy 1 | . 1 . Melee Attacks . | . . . Impact . | . . . Slashing . | . . . Piercing . | . . . Sneak Attacks . | . . . Combat Hostiles . | . . . Follow-up Attacks . | . . . Damage Inflicted 731 | 88 296 347 Guns 174 | 88 38 48 Cannons 419 | . 258 161 Explosions 133 | . . 133 Melee . | . . . Ramming 5 | . . 5 Kinetic 593 | 88 296 209 Thermal . | . . . Explosive 133 | . . 133 Electromagnetic . | . . . Impact . | . . . Slashing . | . . . Piercing . | . . . Highest Corruption . | . . . Average Corruption . | . . . Corruption Purged . | . . . Corruption Blocked . | . . . Overload Shots . | . . . Overflow Damage 15 | . 15 . Projectiles 15 | . 15 . Explosions . | . . . Melee . | . . . Knockbacks 17 | . 8 9 Impact . | . . . Kinetic 11 | . 5 6 Secondary 6 | . 3 3 Self-Inflicted Damage 2 | . . 2 Shots . | . . . Rammed 2 | . . 2 Targets Rammed 2 | . . 2 Kicked . | . . . Crushed . | . . . Highest Temperature 107 | . 84 107 Average Temperature 28 | . 25 32 Received Heat Transfer 350 | . 30 320 Siege Activations . | . . . Robots Corrupted . | . . . Combat Hostiles . | . . . Parts Fried . | . . . Impact Corruptions 1 | . . 1 Robots Melted . | . . . Combat Hostiles . | . . . Parts Melted . | . . . Heat Transferred . | . . . Parts Sabotaged . | . . . Parts Stolen . | . . . Parts Stripped . | . . . Power Chain Reactions . | . . . Alert | -11 -10 -10 ------- Run | Yrd Mat Min Peak Influence 248 | 15 248 112 Initial 81 | . 8 81 Average 90 | 4 121 89 Maximum Alert Level 1 | . 1 . Low Security (%) 91 | 100 86 100 Level 1 8 | . 13 . Level 2 . | . . . Level 3 . | . . . Level 4 . | . . . Level 5 . | . . . High Security . | . . . Max Security . | . . . Squads Dispatched . | . . . Investigation . | . . . Extermination . | . . . Reinforcement . | . . . Assault . | . . . Garrison . | . . . Intercept . | . . . Searches Triggered . | . . . Construction Impeded . | . . . Haulers Reinforced . | . . . Active Scanning Responses . | . . . Cargo Convoy Interrupts . | . . . Stealth | -11 -10 -10 --------- Run | Yrd Mat Min Distress Signals . | . . . Communications Jammed . | . . . Distress Signals . | . . . Times Spotted 26 | . 12 14 Peak Tracking Total 8 | . 4 8 Tactical Retreats 1 | . 1 . Traps | -11 -10 -10 ------- Run | Yrd Mat Min Traps Triggered 2 | . 2 . Indirectly . | . . . Trap Hack Attempts . | . . . Triggered . | . . . Disarmed . | . . . Reprogrammed . | . . . Reused . | . . . Traps Extracted . | . . . Installed . | . . . Triggered . | . . . Machines | -11 -10 -10 ---------- Run | Yrd Mat Min Machines Disabled 1 | . 1 . Max in Single Turn 1 | . 1 . Machines Repaired . | . . . Machines Dismantled . | . . . Machines Sabotaged . | . . . Overloaded Fab Kills . | . . . Hacking | -11 -10 -10 --------- Run | Yrd Mat Min Machines Accessed 2 | . 2 . Terminals 2 | . 2 . Fabricators . | . . . Repair Stations . | . . . Recycling Units . | . . . Scanalyzers . | . . . Garrison Access . | . . . Total Hacks 5 | . 5 . Successful 2 | . 2 . Failed 3 | . 3 . Catastrophic 1 | . 1 . Database Lockouts . | . . . Manual 4 | . 4 . Terminals 5 | . 5 . Fabricators . | . . . Repair Stations . | . . . Recycling Units . | . . . Scanalyzers . | . . . Garrison Access . | . . . Terminal Hacks 2 | . 2 . Record 1 | . 1 . Branch Access Points 1 | . 1 . Fabricator Hacks . | . . . Repair Station Hacks . | . . . Recycling Unit Hacks . | . . . Scanalyzer . | . . . Garrison Access Hacks . | . . . Unauthorized Hacks . | . . . Terminals . | . . . Fabricators . | . . . Repair Stations . | . . . Recycling Units . | . . . Scanalyzers . | . . . Garrison Access . | . . . Data Cores Recovered . | . . . Used . | . . . Hacking Detections 2 | . 2 . Full Trace Events . | . . . Feedback Events . | . . . Feedback Blocked . | . . . Robot Schematics Acquired . | . . . Robots Built . | . . . Authchips . | . . . Time . | . . . Total Robot Build Rating . | . . . Part Schematics Acquired . | . . . Parts Built . | . . . Authchips . | . . . Time . | . . . Total Part Build Rating . | . . . Parts Repaired . | . . . Time . | . . . Parts Recycled . | . . . Recycled Matter . | . . . Retrieved Matter . | . . . Retrieved Components . | . . . Parts Scanalyzed . | . . . Part Schematics Acquired . | . . . Parts Damaged . | . . . Bothacking | -11 -10 -10 ------------ Run | Yrd Mat Min Used RIF Installer . | . . . Robots Hacked . | . . . Non-combat . | . . . Combat . | . . . Robot Hacks Applied . | . . . Relay Couplers Released . | . . . Fabnet Peak Effective % . | . . . Robots Rewired . | . . . Allies Hacked . | . . . Hacks Repelled . | . . . Allies | -11 -10 -10 -------- Run | Yrd Mat Min Total Allies . | . . . Largest Group . | . . . Highest-Rated Group . | . . . Highest-Rated Ally . | . . . Total Orders . | . . . Ally Attacks . | . . . Total Damage . | . . . Kills . | . . . Allies Corrupted . | . . . Allies Melted . | . . . Intel | -11 -10 -10 ------- Run | Yrd Mat Min Robot Analysis Total . | . . . Derelict Logs Recovered . | . . . Drone Launches . | . . . Drone Recoveries . | . . . Exploration | -11 -10 -10 ------------- Run | Yrd Mat Min Turns Passed 434 | 98 264 72 Spaces Moved 275 | 63 185 27 Core 13 | 13 . . Treads . | . . . Legs . | . . . Wheels 262 | 50 185 27 Hover . | . . . Flight . | . . . Fastest Speed 50 | 50 90 90 Average Speed 99 | 103 98 94 Slowest Speed 200 | 200 100 100 Overloaded Moves . | . . . Propulsion Burnouts . | . . . Robots Hopped . | . . . Cave-ins Triggered . | . . . Exploration Rate (%) 14 | 3 35 6 Regions Visited 2 Branch Regions 1 Pre-discovered Areas . | . . . Known Exits Taken 1 | . 1 . Unknown Exits Taken 1 | 1 . . Scrap Searched . | . . . Spaces Dug . | . . . Terrain Destroyed 21 | . . 21 Melee . | . . . Projectile . | . . . AOE 21 | . . 21 Terrain Rammed . | . . . Walls Destroyed . | . . . Machines Disabled . | . . . Actions | -11 -10 -10 --------- Run | Yrd Mat Min Total 366 | 81 232 53 Wait 26 | . 17 9 Move 273 | 62 184 27 Hop . | . . . Pick Up 10 | 5 5 . Fast Attach 10 | 6 4 . Attach 5 | 1 2 2 Detach . | . . . Swap 4 | 1 2 1 Drop 2 | . 2 . Fire 34 | 6 16 12 Melee . | . . . Ram 2 | . . 2 Kick . | . . . Crush . | . . . Escape Stasis . | . . . Rewire . | . . . Trap . | . . . Miscellaneous . | . . . Route ------- -11/Scrapyard -10/Materials -10/Mines History --------- Turn | Location | Event 18 | -11/Scrapyard | Discovered new exit (range 15) 99 | -11/Scrapyard | Entered Materials 215 | -10/Materials | Identified exit to Mines 329 | -10/Materials | Build established: Mutant 363 | -10/Materials | Entered Mines 364 | -10/Mines | Assembled infested the area 369 | -10/Mines | Assisted by a Guerilla fighting off Assembled 398 | -10/Mines | Core integrity fell below 50% 433 | -10/Mines | Core integrity fell below 20% 435 | -10/Mines | Destroyed by as-72661 with Assembled Blade Last Messages --------------- 00411_ Lgt. Cannon destroyed. 00412_ The unstable cave ceiling collapses. 00414_ U-05 Engineer builds a Wall. 00415_ as-12471 destroyed. 00416_ as-56602 destroyed. 00417_ The unstable cave ceiling collapses. 00418_ Critical hit (Burn: +80). 00418_ U-05 Engineer lays Concrete. 00424_ U-05 Engineer destroyed. 00428_ Slammed into as-66178. 00428_ Assault Rifle destroyed. 00429_ as-28262 destroyed. 00431_ as-26074 knocked back. 00431_ Com. Wheel destroyed. 00433_ as-72661 knocked back. 00433_ Destroyed Asb. Hover Unit. 00433_ as-26074 system corrupted by crushing effect. 00433_ as-26074 misfires. 00434_ as-26074 system terminally corrupted. 00435_ Slammed into as-72661. Map ----- +----------------------------------------------------+ | ??????????????????????????????????????? | | ??????????????????????????????????????? | | ??????????????????????????????????????? | | ??????????????????????????????????????? | | ??????????????????????????????????????? | | ??????????????????????????????????????? | | ??????????????????????????????????????? | | ??????????????????????????????????????? | | ??????????????????????????????????????? | | ??????????????????????????????????????? | | ????????????????????????# ????????????? | | ????????????????????????# ????????????? | | ????????????????????????# ????????????? | | ????????????????????????# ####????????? | | ???????????????????###### ####????????? | | ???????????????????? #????????? | | ?????????????????????#"# !%%##???????? | | ??????????????????????# !%%###?????? | | ???????????????????##### ##????? | | ???????????????????###### % ######? | | ??????????????????? % #####? | | ??????????????????????## ! ##? | | ??????????????????????###%% #? | | ???????????????????????## ### #? | | ?????????????????????####a% a ####? | | ????????????????????#### @a # # #?? | | ????????????????????### aa # #?? | | ????????????????????## % %a # ###?? | | ????????????????????## # ##??? | | ????????????????????### # # # #???? | | ????????????????????#### # ##???? | | ?????????????????????###### ###????? | | ??????????????????????###########?????? | | | | | | | | | | | | | | | | | | | | | | | | | | | | | | | | | | | +----------------------------------------------------+ Best States ------------- Heat Dissipation 25 Energy Generation 10 Energy Capacity 250 Matter Stores 164 Matter Capacity 300 Sight Range 16 Terrain Scan Density 10 Resistance: KI 20 Resistance: TH 20 Resistance: EX 20 Resistance: EM 20 Resistance: I 20 Resistance: S 20 Resistance: P 20 Evasion (%) 42 Offensive Hacking 10 Item Schematics ----------------- None Robot Schematics ------------------ None Fabricated ------------ Nothing Alien Tech Used ----------------- None Achievements -------------- None Challenges ------------ None Game ------ Seed AerolevDataFlamer Manual? 0 Play Time 00:10:22 Cumulative 29.4 hours Start 2024.06.01 @ 21:48:41 End 2024.06.01 @ 21:56:20 Sessions 1 Manual Loads 0 Difficulty Adventurer Special Mode None Game No. 11 Rogue 0 Adventurer 11 Explorer 0 Win Type - Total 0 Types 0/0/0/0/0/0/0/0/0 Lore% 20 Gallery% 29 Achievement% 27 Wizard Run 0 Options --------- Layout 0 ASCII 0 Keyboard 0 Movement Numpad Keybinds 0 Fullscreen 1 Font 18/SmallcapsGlow Map View 76x50 Zoom Use 0% Tactical HUD 1 Map Filters NONE Filters NONE Steam 1 RUN: 35646110-f685-445f-b12c-0887454022b1